[Event "Titled Tuesday Blitz May 17 Early 2022"]
[White "Bachmann, Axel"]
[Black "Gabrielian, Artur"]
[WhiteFideId "3700488"]
[BlackFideId "4131002"]
[WhiteElo "2587"]
[BlackElo "2440"]
[Result "1-0"]
[Round "07"]
[TimeControl "180+1"]
[Date "2022.05.17"]
[WhiteClock "0:00:05"]
[BlackClock "0:00:09"]

1. e4 {[%clk 0:02:59]}  c5 {[%clk 0:02:58]} 2. Nf3 {[%clk 0:02:57]}  d6 {[%clk 0:02:58]} 3. d4 {[%clk 0:02:56]}  cxd4 {[%clk 0:02:58]} 4. Nxd4 {[%clk 0:02:57]}  Nf6 {[%clk 0:02:59]} 5. Nc3 {[%clk 0:02:56]}  Nc6 {[%clk 0:03:00]} 6. Bg5 {[%clk 0:02:54]}  e6 {[%clk 0:03:00]} 7. Qd2 {[%clk 0:02:54]}  a6 {[%clk 0:03:00]} 8. O-O-O {[%clk 0:02:53]}  Bd7 {[%clk 0:03:01]} 9. h4 {[%clk 0:02:46]}  Be7 {[%clk 0:03:00]} 10. f3 {[%clk 0:02:39]}  Nxd4 {[%clk 0:02:58]} 11. Qxd4 {[%clk 0:02:39]}  h6 {[%clk 0:02:58]} 12. Be3 {[%clk 0:02:37]}  Bc6 {[%clk 0:02:59]} 13. Kb1 {[%clk 0:02:33]}  O-O {[%clk 0:02:51]} 14. g4 {[%clk 0:02:33]}  Nd7 {[%clk 0:02:36]} 15. g5 {[%clk 0:02:30]}  h5 {[%clk 0:02:36]} 16. f4 {[%clk 0:02:22]}  b5 {[%clk 0:02:21]} 17. Be2 {[%clk 0:01:50]}  g6 {[%clk 0:02:11]} 18. Rhf1 {[%clk 0:01:38]}  Rb8 {[%clk 0:02:07]} 19. Bf3 {[%clk 0:01:20]}  b4 {[%clk 0:02:03]} 20. Ne2 {[%clk 0:01:20]}  e5 {[%clk 0:02:02]} 21. Qd2 {[%clk 0:01:15]}  exf4 {[%clk 0:01:59]} 22. Nxf4 {[%clk 0:00:57]}  Ne5 {[%clk 0:01:59]} 23. Qg2 {[%clk 0:00:54]}  Qc8 {[%clk 0:01:42]} 24. Be2 {[%clk 0:00:53]}  a5 {[%clk 0:01:31]} 25. Nd5 {[%clk 0:00:53]}  Bxd5 {[%clk 0:01:32]} 26. Rxd5 {[%clk 0:00:53]}  a4 {[%clk 0:01:32]} 27. Bd4 {[%clk 0:00:52]}  b3 {[%clk 0:01:32]} 28. Rc1 {[%clk 0:00:40]}  bxa2+ {[%clk 0:01:28]} 29. Kxa2 {[%clk 0:00:33]}  Nc6 {[%clk 0:01:18]} 30. Bc3 {[%clk 0:00:16]}  Nb4+ {[%clk 0:01:09]} 31. Bxb4 {[%clk 0:00:16]}  Rxb4 {[%clk 0:01:10]} 32. c3 {[%clk 0:00:17]}  Rb3 {[%clk 0:01:00]} 33. Rd4 {[%clk 0:00:18]}  Qb7 {[%clk 0:00:54]} 34. Bc4 {[%clk 0:00:18]}  Rb8 {[%clk 0:00:48]} 35. Rc2 {[%clk 0:00:13]}  d5 {[%clk 0:00:45]} 36. Bxd5 {[%clk 0:00:12]}  Qb6 {[%clk 0:00:39]} 37. Rxa4 {[%clk 0:00:11]}  Qb5 {[%clk 0:00:28]} 38. Ra7 {[%clk 0:00:10]}  Ra3+ {[%clk 0:00:17]} 39. Rxa3 {[%clk 0:00:08]}  Bxa3 {[%clk 0:00:17]} 40. Qf2 {[%clk 0:00:05]}  Kh8 {[%clk 0:00:10]} 41. Qf6+ {[%clk 0:00:03]}  Kh7 {[%clk 0:00:09]} 42. Qxf7+ {[%clk 0:00:04]}  Kh8 {[%clk 0:00:10]} 43. Qf6+ {[%clk 0:00:03]}  Kh7 {[%clk 0:00:10]} 44. Qf7+ {[%clk 0:00:04]}  Kh8 {[%clk 0:00:10]} 45. Qxg6 {[%clk 0:00:05]}  Bxb2 {[%clk 0:00:09]} 46. Qh6# {[%clk 0:00:05]} 1-0


[Site "https://www.chess.com"]

[Event "Titled Tuesday Blitz May 17 Early 2022"]
[White "Bryakin, Mikhail"]
[Black "Csonka, Balazs"]
[WhiteFideId "4165314"]
[BlackFideId "742910"]
[WhiteElo "2417"]
[BlackElo "2404"]
[Result "0-1"]
[Round "07"]
[TimeControl "180+1"]
[Date "2022.05.17"]
[WhiteClock "0:01:32"]
[BlackClock "0:00:06"]

1. e4 {[%clk 0:03:00]}  e6 {[%clk 0:02:57]} 2. d4 {[%clk 0:02:54]}  d5 {[%clk 0:02:57]} 3. Nd2 {[%clk 0:02:54]}  Nf6 {[%clk 0:02:51]} 4. e5 {[%clk 0:02:43]}  Nfd7 {[%clk 0:02:51]} 5. Ngf3 {[%clk 0:02:40]}  c5 {[%clk 0:02:51]} 6. dxc5 {[%clk 0:02:34]}  Bxc5 {[%clk 0:02:37]} 7. Nb3 {[%clk 0:02:34]}  Bb6 {[%clk 0:02:33]} 8. Bf4 {[%clk 0:02:33]}  Nc6 {[%clk 0:02:27]} 9. Bd3 {[%clk 0:02:26]}  f6 {[%clk 0:02:12]} 10. Qe2 {[%clk 0:02:23]}  fxe5 {[%clk 0:02:00]} 11. Nxe5 {[%clk 0:02:22]}  Ndxe5 {[%clk 0:02:00]} 12. Bxe5 {[%clk 0:02:21]}  Nxe5 {[%clk 0:01:59]} 13. Qxe5 {[%clk 0:02:22]}  Qf6 {[%clk 0:01:59]} 14. Qxf6 {[%clk 0:02:07]}  gxf6 {[%clk 0:01:59]} 15. c3 {[%clk 0:02:04]}  e5 {[%clk 0:01:52]} 16. f3 {[%clk 0:02:02]}  Be6 {[%clk 0:01:48]} 17. Rd1 {[%clk 0:01:59]}  Ke7 {[%clk 0:01:44]} 18. Ke2 {[%clk 0:01:58]}  Rag8 {[%clk 0:01:39]} 19. g4 {[%clk 0:01:55]}  h5 {[%clk 0:01:36]} 20. h3 {[%clk 0:01:55]}  hxg4 {[%clk 0:01:21]} 21. fxg4 {[%clk 0:01:55]}  e4 {[%clk 0:00:48]} 22. Bc2 {[%clk 0:01:54]}  f5 {[%clk 0:00:45]} 23. gxf5 {[%clk 0:01:41]}  Rg2+ {[%clk 0:00:44]} 24. Ke1 {[%clk 0:01:41]}  Rxc2 {[%clk 0:00:21]} 25. fxe6 {[%clk 0:01:42]}  Rxb2 {[%clk 0:00:21]} 26. Nd4 {[%clk 0:01:42]}  Bxd4 {[%clk 0:00:16]} 27. Rxd4 {[%clk 0:01:43]}  Kxe6 {[%clk 0:00:15]} 28. h4 {[%clk 0:01:43]}  Rxa2 {[%clk 0:00:13]} 29. h5 {[%clk 0:01:43]}  Ra1+ {[%clk 0:00:12]} 30. Rd1 {[%clk 0:01:44]}  Rxd1+ {[%clk 0:00:12]} 31. Kxd1 {[%clk 0:01:45]}  Kf5 {[%clk 0:00:12]} 32. h6 {[%clk 0:01:45]}  Kg6 {[%clk 0:00:11]} 33. Rg1+ {[%clk 0:01:44]}  Kxh6 {[%clk 0:00:11]} 34. Kd2 {[%clk 0:01:45]}  Rc8 {[%clk 0:00:10]} 35. Ra1 {[%clk 0:01:42]}  a6 {[%clk 0:00:09]} 36. Ra5 {[%clk 0:01:43]}  Rd8 {[%clk 0:00:08]} 37. Rc5 {[%clk 0:01:42]}  Rd7 {[%clk 0:00:07]} 38. Ke3 {[%clk 0:01:42]}  Kg6 {[%clk 0:00:08]} 39. Kd4 {[%clk 0:01:38]}  Kf6 {[%clk 0:00:08]} 40. Rc8 {[%clk 0:01:36]}  Ke6 {[%clk 0:00:08]} 41. Rh8 {[%clk 0:01:37]}  Kd6 {[%clk 0:00:08]} 42. Rh6+ {[%clk 0:01:38]}  Kc7 {[%clk 0:00:08]} 43. Kc5 {[%clk 0:01:38]}  Re7 {[%clk 0:00:08]} 44. Kxd5 {[%clk 0:01:39]}  e3 {[%clk 0:00:08]} 45. Rh1 {[%clk 0:01:39]}  e2 {[%clk 0:00:09]} 46. Re1 {[%clk 0:01:40]}  Kb6 {[%clk 0:00:06]} 47. Kc4 {[%clk 0:01:40]}  Kc6 {[%clk 0:00:05]} 48. Kd4 {[%clk 0:01:40]}  Kb5 {[%clk 0:00:05]} 49. Rb1+ {[%clk 0:01:39]}  Kc6 {[%clk 0:00:05]} 50. Re1 {[%clk 0:01:38]}  a5 {[%clk 0:00:05]} 51. Kc4 {[%clk 0:01:39]}  b5+ {[%clk 0:00:05]} 52. Kd4 {[%clk 0:01:39]}  a4 {[%clk 0:00:05]} 53. Kd3 {[%clk 0:01:35]}  Kd5 {[%clk 0:00:06]} 54. Kc2 {[%clk 0:01:31]}  Kc4 {[%clk 0:00:05]} 55. Kd2 {[%clk 0:01:31]}  a3 {[%clk 0:00:05]} 56. Kc2 {[%clk 0:01:32]}  a2 {[%clk 0:00:06]} 57. Kb2 {[%clk 0:01:32]}  Kd3 {[%clk 0:00:06]} 58. Ra1 {[%clk 0:01:32]}  e1=Q {[%clk 0:00:06]} 0-1


[Site "https://www.chess.com"]

[Event "Titled Tuesday Blitz May 17 Early 2022"]
[White "Ciorgovean, Iustin"]
[Black "Korchmar, Vasiliy"]
[WhiteFideId "1242911"]
[BlackFideId "24131750"]
[WhiteElo "2075"]
[BlackElo "2370"]
[Result "1-0"]
[Round "07"]
[TimeControl "180+1"]
[Date "2022.05.17"]
[WhiteClock "0:01:04"]
[BlackClock "0:00:01"]

1. d4 {[%clk 0:03:00]}  d5 {[%clk 0:02:59]} 2. c4 {[%clk 0:03:01]}  c6 {[%clk 0:02:59]} 3. cxd5 {[%clk 0:03:00]}  cxd5 {[%clk 0:03:00]} 4. Bf4 {[%clk 0:03:01]}  Nf6 {[%clk 0:03:00]} 5. e3 {[%clk 0:03:00]}  Nc6 {[%clk 0:03:00]} 6. Bb5 {[%clk 0:02:57]}  Bd7 {[%clk 0:02:54]} 7. Nc3 {[%clk 0:02:53]}  e6 {[%clk 0:02:53]} 8. Nf3 {[%clk 0:02:47]}  Be7 {[%clk 0:02:53]} 9. O-O {[%clk 0:02:47]}  O-O {[%clk 0:02:54]} 10. h3 {[%clk 0:02:47]}  Rc8 {[%clk 0:02:53]} 11. Bd3 {[%clk 0:02:41]}  a6 {[%clk 0:02:51]} 12. Qe2 {[%clk 0:02:39]}  b5 {[%clk 0:02:51]} 13. Rfc1 {[%clk 0:02:38]}  Na5 {[%clk 0:02:46]} 14. Ne5 {[%clk 0:02:28]}  Nc4 {[%clk 0:02:45]} 15. Bg5 {[%clk 0:02:18]}  h6 {[%clk 0:02:39]} 16. Bh4 {[%clk 0:02:12]}  Nxe5 {[%clk 0:02:30]} 17. dxe5 {[%clk 0:02:11]}  Ne4 {[%clk 0:02:26]} 18. Bxe7 {[%clk 0:02:07]}  Nxc3 {[%clk 0:02:26]} 19. Rxc3 {[%clk 0:02:07]}  Qxe7 {[%clk 0:02:24]} 20. Rac1 {[%clk 0:02:05]}  Qg5 {[%clk 0:01:57]} 21. f4 {[%clk 0:01:52]}  Qg3 {[%clk 0:01:54]} 22. Qf2 {[%clk 0:01:48]}  Qxf2+ {[%clk 0:01:53]} 23. Kxf2 {[%clk 0:01:49]}  Rfd8 {[%clk 0:01:37]} 24. Rxc8 {[%clk 0:01:36]}  Rxc8 {[%clk 0:01:38]} 25. Rxc8+ {[%clk 0:01:36]}  Bxc8 {[%clk 0:01:39]} 26. Ke2 {[%clk 0:01:36]}  Bb7 {[%clk 0:01:08]} 27. g3 {[%clk 0:01:28]}  b4 {[%clk 0:00:44]} 28. a3 {[%clk 0:01:25]}  a5 {[%clk 0:00:42]} 29. axb4 {[%clk 0:01:25]}  axb4 {[%clk 0:00:42]} 30. Bb5 {[%clk 0:01:18]}  f6 {[%clk 0:00:39]} 31. Kd3 {[%clk 0:01:16]}  fxe5 {[%clk 0:00:38]} 32. fxe5 {[%clk 0:01:17]}  Kf7 {[%clk 0:00:26]} 33. Kd4 {[%clk 0:01:15]}  Kg6 {[%clk 0:00:26]} 34. Bd7 {[%clk 0:01:09]}  Kf7 {[%clk 0:00:15]} 35. Kc5 {[%clk 0:01:08]}  b3 {[%clk 0:00:14]} 36. Kd6 {[%clk 0:01:05]}  Kf8 {[%clk 0:00:01]} 37. Bxe6 {[%clk 0:01:04]} 1-0


[Site "https://www.chess.com"]

[Event "Titled Tuesday Blitz May 17 Early 2022"]
[White "Delgado Ramirez, Neuris"]
[Black "Indjic, Aleksandar"]
[WhiteFideId "3503631"]
[BlackFideId "911925"]
[WhiteElo "2627"]
[BlackElo "2616"]
[Result "0-1"]
[Round "07"]
[TimeControl "180+1"]
[Date "2022.05.17"]
[WhiteClock "0:00:42"]
[BlackClock "0:01:22"]

1. e4 {[%clk 0:02:59]}  d5 {[%clk 0:03:00]} 2. exd5 {[%clk 0:02:57]}  Qxd5 {[%clk 0:03:01]} 3. Nc3 {[%clk 0:02:56]}  Qd6 {[%clk 0:03:01]} 4. Nf3 {[%clk 0:02:55]}  Nf6 {[%clk 0:02:59]} 5. d4 {[%clk 0:02:56]}  a6 {[%clk 0:02:59]} 6. Be3 {[%clk 0:02:56]}  g6 {[%clk 0:02:51]} 7. h3 {[%clk 0:02:51]}  Bg7 {[%clk 0:02:49]} 8. Qd2 {[%clk 0:02:51]}  O-O {[%clk 0:02:48]} 9. Bh6 {[%clk 0:02:51]}  b5 {[%clk 0:02:47]} 10. Bxg7 {[%clk 0:02:48]}  Kxg7 {[%clk 0:02:48]} 11. Be2 {[%clk 0:02:48]}  Bb7 {[%clk 0:02:48]} 12. a3 {[%clk 0:02:44]}  Nbd7 {[%clk 0:02:48]} 13. Rd1 {[%clk 0:02:40]}  c5 {[%clk 0:02:44]} 14. Qe3 {[%clk 0:02:37]}  c4 {[%clk 0:02:43]} 15. O-O {[%clk 0:02:34]}  Nb6 {[%clk 0:02:41]} 16. Ne5 {[%clk 0:02:32]}  Nbd5 {[%clk 0:02:40]} 17. Nxd5 {[%clk 0:02:32]}  Nxd5 {[%clk 0:02:40]} 18. Qg3 {[%clk 0:01:42]}  f6 {[%clk 0:02:36]} 19. Bf3 {[%clk 0:01:27]}  fxe5 {[%clk 0:02:33]} 20. dxe5 {[%clk 0:01:23]}  Qe6 {[%clk 0:02:27]} 21. Rd4 {[%clk 0:01:22]}  Rab8 {[%clk 0:02:13]} 22. Rfd1 {[%clk 0:01:10]}  Nb6 {[%clk 0:01:39]} 23. Bg4 {[%clk 0:01:09]}  Qc6 {[%clk 0:01:36]} 24. f4 {[%clk 0:01:09]}  Qc5 {[%clk 0:01:34]} 25. Kh2 {[%clk 0:01:04]}  Kh8 {[%clk 0:01:32]} 26. c3 {[%clk 0:00:56]}  Bd5 {[%clk 0:01:24]} 27. Qh4 {[%clk 0:00:47]}  e6 {[%clk 0:01:24]} 28. Qg5 {[%clk 0:00:42]}  Rb7 {[%clk 0:01:23]} 29. h4 {[%clk 0:00:42]}  Qe7 {[%clk 0:01:23]} 30. Qh6 {[%clk 0:00:42]}  Qg7 {[%clk 0:01:22]} 0-1


[Site "https://www.chess.com"]

[Event "Titled Tuesday Blitz May 17 Early 2022"]
[White "Demchenko, Anton"]
[Black "Kamsky, Gata"]
[WhiteFideId "4160258"]
[BlackFideId "2000024"]
[WhiteElo "2539"]
[BlackElo "2645"]
[Result "0-1"]
[Round "07"]
[TimeControl "180+1"]
[Date "2022.05.17"]
[WhiteClock "0:00:01"]
[BlackClock "0:00:36"]

1. e4 {[%clk 0:03:00]}  e5 {[%clk 0:02:57]} 2. Nf3 {[%clk 0:03:00]}  Nc6 {[%clk 0:02:56]} 3. Bc4 {[%clk 0:03:00]}  Nf6 {[%clk 0:02:55]} 4. d3 {[%clk 0:03:01]}  h6 {[%clk 0:02:55]} 5. a4 {[%clk 0:02:59]}  d6 {[%clk 0:02:50]} 6. Nc3 {[%clk 0:02:59]}  g6 {[%clk 0:02:47]} 7. h3 {[%clk 0:03:00]}  Bg7 {[%clk 0:02:47]} 8. Be3 {[%clk 0:03:01]}  Be6 {[%clk 0:02:43]} 9. Bxe6 {[%clk 0:02:59]}  fxe6 {[%clk 0:02:44]} 10. Ne2 {[%clk 0:03:00]}  Nh5 {[%clk 0:02:27]} 11. c3 {[%clk 0:02:49]}  Qe7 {[%clk 0:02:23]} 12. a5 {[%clk 0:02:43]}  a6 {[%clk 0:02:21]} 13. Ng3 {[%clk 0:02:31]}  Nxg3 {[%clk 0:02:15]} 14. fxg3 {[%clk 0:02:31]}  d5 {[%clk 0:02:00]} 15. O-O {[%clk 0:02:26]}  O-O {[%clk 0:01:49]} 16. Qb3 {[%clk 0:02:25]}  Qd7 {[%clk 0:01:48]} 17. Bc5 {[%clk 0:02:02]}  Rfb8 {[%clk 0:01:29]} 18. Nh2 {[%clk 0:01:55]}  b6 {[%clk 0:01:28]} 19. axb6 {[%clk 0:01:55]}  cxb6 {[%clk 0:01:27]} 20. Ba3 {[%clk 0:01:54]}  Na5 {[%clk 0:01:21]} 21. Qa2 {[%clk 0:01:45]}  Qb5 {[%clk 0:01:16]} 22. Rf3 {[%clk 0:01:27]}  Qb3 {[%clk 0:01:13]} 23. Ng4 {[%clk 0:00:32]}  Qxa2 {[%clk 0:01:10]} 24. Rxa2 {[%clk 0:00:33]}  dxe4 {[%clk 0:01:00]} 25. dxe4 {[%clk 0:00:34]}  Nc6 {[%clk 0:00:54]} 26. Nf6+ {[%clk 0:00:32]}  Kh8 {[%clk 0:00:53]} 27. Ra1 {[%clk 0:00:33]}  Rd8 {[%clk 0:00:52]} 28. Raf1 {[%clk 0:00:32]}  Rd2 {[%clk 0:00:51]} 29. Ng4 {[%clk 0:00:25]}  Rad8 {[%clk 0:00:45]} 30. Rf7 {[%clk 0:00:17]}  R2d7 {[%clk 0:00:44]} 31. Rxd7 {[%clk 0:00:14]}  Rxd7 {[%clk 0:00:43]} 32. Ne3 {[%clk 0:00:12]}  b5 {[%clk 0:00:42]} 33. Kf2 {[%clk 0:00:07]}  a5 {[%clk 0:00:40]} 34. Bc5 {[%clk 0:00:01]}  Rd2+ {[%clk 0:00:40]} 35. Kf3 {[%clk 0:00:02]}  Kg8 {[%clk 0:00:38]} 36. Rf2 {[%clk 0:00:01]}  Rd7 {[%clk 0:00:36]} 0-1


[Site "https://www.chess.com"]

[Event "Titled Tuesday Blitz May 17 Early 2022"]
[White "Djokic, Mihailo"]
[Black "Matinian, Nikita"]
[WhiteFideId "976440"]
[BlackFideId "24129100"]
[WhiteElo "2202"]
[BlackElo "2422"]
[Result "0-1"]
[Round "07"]
[TimeControl "180+1"]
[Date "2022.05.17"]
[WhiteClock "0:00:27"]
[BlackClock "0:00:54"]

1. e4 {[%clk 0:03:00]}  c5 {[%clk 0:02:58]} 2. Nf3 {[%clk 0:03:00]}  Nc6 {[%clk 0:02:58]} 3. d4 {[%clk 0:03:01]}  cxd4 {[%clk 0:02:58]} 4. Nxd4 {[%clk 0:03:01]}  Nf6 {[%clk 0:02:59]} 5. Nc3 {[%clk 0:03:02]}  e6 {[%clk 0:02:59]} 6. Ndb5 {[%clk 0:03:02]}  d6 {[%clk 0:02:59]} 7. Bf4 {[%clk 0:03:03]}  e5 {[%clk 0:02:59]} 8. Bg5 {[%clk 0:03:04]}  a6 {[%clk 0:03:00]} 9. Bxf6 {[%clk 0:03:04]}  gxf6 {[%clk 0:03:00]} 10. Na3 {[%clk 0:03:05]}  f5 {[%clk 0:02:59]} 11. Nd5 {[%clk 0:03:06]}  Bg7 {[%clk 0:02:55]} 12. Nc4 {[%clk 0:03:01]}  O-O {[%clk 0:02:35]} 13. Ndb6 {[%clk 0:02:59]}  Rb8 {[%clk 0:02:35]} 14. Qxd6 {[%clk 0:02:58]}  fxe4 {[%clk 0:02:31]} 15. O-O-O {[%clk 0:02:41]}  Bg4 {[%clk 0:02:25]} 16. Qxd8 {[%clk 0:02:39]}  Rfxd8 {[%clk 0:02:25]} 17. Rxd8+ {[%clk 0:02:39]}  Rxd8 {[%clk 0:02:24]} 18. Ne3 {[%clk 0:02:34]}  Bh6 {[%clk 0:02:24]} 19. Bc4 {[%clk 0:02:25]}  Nd4 {[%clk 0:01:59]} 20. Nd5 {[%clk 0:02:20]}  Kg7 {[%clk 0:01:47]} 21. Kb1 {[%clk 0:02:17]}  Be6 {[%clk 0:01:46]} 22. c3 {[%clk 0:02:07]}  Nc6 {[%clk 0:01:29]} 23. Nb6 {[%clk 0:01:03]}  Bxe3 {[%clk 0:01:24]} 24. fxe3 {[%clk 0:01:03]}  Rd2 {[%clk 0:01:20]} 25. Bxe6 {[%clk 0:01:03]}  fxe6 {[%clk 0:01:21]} 26. Nc4 {[%clk 0:00:54]}  Rxg2 {[%clk 0:01:20]} 27. Rd1 {[%clk 0:00:52]}  b5 {[%clk 0:01:16]} 28. Rd7+ {[%clk 0:00:49]}  Kg6 {[%clk 0:01:15]} 29. Nd6 {[%clk 0:00:48]}  Rd2 {[%clk 0:01:02]} 30. Kc1 {[%clk 0:00:40]}  Rd3 {[%clk 0:01:03]} 31. h4 {[%clk 0:00:35]}  h5 {[%clk 0:00:58]} 32. Kc2 {[%clk 0:00:32]}  Rxe3 {[%clk 0:00:56]} 33. Rc7 {[%clk 0:00:29]}  Nd8 {[%clk 0:00:55]} 34. Rc8 {[%clk 0:00:27]}  Nf7 {[%clk 0:00:54]} 35. Rg8+ {[%clk 0:00:27]}  Kh7 {[%clk 0:00:54]} 0-1


[Site "https://www.chess.com"]

[Event "Titled Tuesday Blitz May 17 Early 2022"]
[White "Drygalov, Sergey"]
[Black "Vakhlamov, Igor L."]
[WhiteFideId "24171743"]
[BlackFideId "24126748"]
[WhiteElo "2514"]
[BlackElo "2401"]
[Result "0-1"]
[Round "07"]
[TimeControl "180+1"]
[Date "2022.05.17"]
[WhiteClock "0:01:00"]
[BlackClock "0:01:28"]

1. d4 {[%clk 0:02:59]}  d5 {[%clk 0:03:00]} 2. c4 {[%clk 0:02:59]}  e6 {[%clk 0:03:00]} 3. Nc3 {[%clk 0:02:59]}  c5 {[%clk 0:03:00]} 4. cxd5 {[%clk 0:02:59]}  cxd4 {[%clk 0:03:00]} 5. Qxd4 {[%clk 0:02:55]}  exd5 {[%clk 0:02:59]} 6. e4 {[%clk 0:02:55]}  dxe4 {[%clk 0:02:54]} 7. Bb5+ {[%clk 0:02:54]}  Bd7 {[%clk 0:02:48]} 8. Qxe4+ {[%clk 0:02:53]}  Qe7 {[%clk 0:02:48]} 9. Bxd7+ {[%clk 0:02:52]}  Nxd7 {[%clk 0:02:47]} 10. Nf3 {[%clk 0:02:53]}  Ngf6 {[%clk 0:02:47]} 11. Qxe7+ {[%clk 0:02:53]}  Bxe7 {[%clk 0:02:48]} 12. O-O {[%clk 0:02:52]}  O-O {[%clk 0:02:48]} 13. Bf4 {[%clk 0:02:52]}  Rfe8 {[%clk 0:02:37]} 14. Rad1 {[%clk 0:02:51]}  a6 {[%clk 0:02:35]} 15. h3 {[%clk 0:02:48]}  Rac8 {[%clk 0:02:34]} 16. Rfe1 {[%clk 0:02:48]}  Bb4 {[%clk 0:02:33]} 17. Rxe8+ {[%clk 0:02:46]}  Rxe8 {[%clk 0:02:34]} 18. Nd5 {[%clk 0:02:45]}  Nxd5 {[%clk 0:02:32]} 19. Rxd5 {[%clk 0:02:45]}  Nf6 {[%clk 0:02:31]} 20. Rd3 {[%clk 0:02:44]}  Bf8 {[%clk 0:02:24]} 21. Be5 {[%clk 0:02:43]}  Ne4 {[%clk 0:02:12]} 22. Rd4 {[%clk 0:02:28]}  Nc5 {[%clk 0:02:09]} 23. Rd2 {[%clk 0:02:13]}  f6 {[%clk 0:02:08]} 24. Bd4 {[%clk 0:02:13]}  Ne4 {[%clk 0:02:07]} 25. Rc2 {[%clk 0:02:13]}  Kf7 {[%clk 0:02:02]} 26. Be3 {[%clk 0:02:07]}  Re7 {[%clk 0:02:00]} 27. Kf1 {[%clk 0:01:58]}  Rd7 {[%clk 0:01:58]} 28. Ke2 {[%clk 0:01:59]}  h5 {[%clk 0:01:59]} 29. g4 {[%clk 0:01:55]}  hxg4 {[%clk 0:02:00]} 30. hxg4 {[%clk 0:01:56]}  Be7 {[%clk 0:01:52]} 31. Nd4 {[%clk 0:01:54]}  g6 {[%clk 0:01:51]} 32. f3 {[%clk 0:01:49]}  Nd6 {[%clk 0:01:51]} 33. Nb3 {[%clk 0:01:46]}  Nb5 {[%clk 0:01:46]} 34. a4 {[%clk 0:01:42]}  Nc7 {[%clk 0:01:42]} 35. Nc5 {[%clk 0:01:13]}  Bxc5 {[%clk 0:01:42]} 36. Bxc5 {[%clk 0:01:14]}  Nd5 {[%clk 0:01:42]} 37. Rd2 {[%clk 0:01:11]}  Nf4+ {[%clk 0:01:37]} 38. Ke3 {[%clk 0:01:11]}  Rxd2 {[%clk 0:01:37]} 39. Kxd2 {[%clk 0:01:12]}  Ke6 {[%clk 0:01:36]} 40. Ke3 {[%clk 0:01:12]}  Nd5+ {[%clk 0:01:31]} 41. Kd4 {[%clk 0:01:11]}  f5 {[%clk 0:01:30]} 42. Bf8 {[%clk 0:01:05]}  fxg4 {[%clk 0:01:29]} 43. fxg4 {[%clk 0:01:06]}  Nf6 {[%clk 0:01:28]} 44. g5 {[%clk 0:01:00]} 0-1


[Site "https://www.chess.com"]

[Event "Titled Tuesday Blitz May 17 Early 2022"]
[White "Dubov, Daniil"]
[Black "Ohanyan, Emin"]
[WhiteFideId "24126055"]
[BlackFideId "13312022"]
[WhiteElo "2791"]
[BlackElo "1927"]
[Result "1-0"]
[Round "07"]
[TimeControl "180+1"]
[Date "2022.05.17"]
[WhiteClock "0:01:43"]
[BlackClock "0:00:35"]

1. d4 {[%clk 0:03:00]}  Nf6 {[%clk 0:02:56]} 2. Nf3 {[%clk 0:03:00]}  d5 {[%clk 0:02:55]} 3. c4 {[%clk 0:03:01]}  e6 {[%clk 0:02:55]} 4. g3 {[%clk 0:03:01]}  Bb4+ {[%clk 0:02:54]} 5. Nbd2 {[%clk 0:03:01]}  dxc4 {[%clk 0:02:49]} 6. Bg2 {[%clk 0:03:01]}  c5 {[%clk 0:02:25]} 7. dxc5 {[%clk 0:02:57]}  Bxc5 {[%clk 0:02:01]} 8. O-O {[%clk 0:02:56]}  c3 {[%clk 0:01:59]} 9. bxc3 {[%clk 0:02:48]}  O-O {[%clk 0:01:59]} 10. Rb1 {[%clk 0:02:46]}  Nc6 {[%clk 0:01:57]} 11. Qc2 {[%clk 0:02:45]}  Qe7 {[%clk 0:01:48]} 12. Nb3 {[%clk 0:02:33]}  Bb6 {[%clk 0:01:47]} 13. Nfd2 {[%clk 0:02:25]}  Ne5 {[%clk 0:01:18]} 14. c4 {[%clk 0:02:20]}  Ned7 {[%clk 0:01:06]} 15. c5 {[%clk 0:02:14]}  Bc7 {[%clk 0:00:46]} 16. Nc4 {[%clk 0:01:51]}  Nd5 {[%clk 0:00:46]} 17. Ba3 {[%clk 0:01:46]}  a5 {[%clk 0:00:35]} 18. c6 {[%clk 0:01:43]} 1-0


[Site "https://www.chess.com"]

[Event "Titled Tuesday Blitz May 17 Early 2022"]
[White "Jumabayev, Rinat"]
[Black "Liyanage, Ranindu Dilshan"]
[WhiteFideId "13702661"]
[BlackFideId "9915834"]
[WhiteElo "2561"]
[BlackElo "1858"]
[Result "1-0"]
[Round "07"]
[TimeControl "180+1"]
[Date "2022.05.17"]
[WhiteClock "0:01:44"]
[BlackClock "0:01:01"]

1. d4 {[%clk 0:03:00]}  Nf6 {[%clk 0:03:00]} 2. Bf4 {[%clk 0:03:01]}  d5 {[%clk 0:02:59]} 3. Nd2 {[%clk 0:02:58]}  g6 {[%clk 0:02:56]} 4. Ngf3 {[%clk 0:02:51]}  Bg7 {[%clk 0:02:56]} 5. e3 {[%clk 0:02:51]}  O-O {[%clk 0:02:57]} 6. c3 {[%clk 0:02:49]}  c5 {[%clk 0:02:56]} 7. h3 {[%clk 0:02:50]}  b6 {[%clk 0:02:57]} 8. a4 {[%clk 0:02:50]}  Bb7 {[%clk 0:02:54]} 9. a5 {[%clk 0:02:50]}  c4 {[%clk 0:02:49]} 10. b3 {[%clk 0:02:46]}  cxb3 {[%clk 0:02:41]} 11. Qxb3 {[%clk 0:02:45]}  Nbd7 {[%clk 0:02:29]} 12. Bd3 {[%clk 0:02:41]}  Qc8 {[%clk 0:02:24]} 13. O-O {[%clk 0:02:39]}  Ba6 {[%clk 0:02:19]} 14. c4 {[%clk 0:02:35]}  bxa5 {[%clk 0:02:11]} 15. Rxa5 {[%clk 0:02:21]}  dxc4 {[%clk 0:02:05]} 16. Nxc4 {[%clk 0:02:20]}  Nb6 {[%clk 0:01:54]} 17. Rc5 {[%clk 0:02:17]}  Bxc4 {[%clk 0:01:18]} 18. Bxc4 {[%clk 0:02:14]}  Qb7 {[%clk 0:01:19]} 19. Rc7 {[%clk 0:02:10]}  Qe4 {[%clk 0:01:18]} 20. Ng5 {[%clk 0:02:08]}  Qf5 {[%clk 0:01:16]} 21. Bxf7+ {[%clk 0:02:06]}  Kh8 {[%clk 0:01:16]} 22. Be6 {[%clk 0:01:57]}  Qa5 {[%clk 0:01:12]} 23. Be5 {[%clk 0:01:49]}  Nbd5 {[%clk 0:01:01]} 24. Rc5 {[%clk 0:01:44]} 1-0


[Site "https://www.chess.com"]